[Event "Titled Tuesday Blitz July 4 Early 2023"]
[White "benny_aizenberg"]
[Black "Vokhidov, Shamsiddin"]
[BlackFideId "14204223"]
[WhiteElo "2670"]
[BlackElo "2923"]
[Result "0-1"]
[Round "8"]
[TimeControl "180+2"]
[Date "2023.07.04"]
[WhiteClock "0:00:00"]
[BlackClock "0:01:22"]
[Board "7"]

1. c4 {[%clk 0:03:00]}  e5 {[%clk 0:03:00]} 2. Nc3 {[%clk 0:00:52]}  Nf6 {[%clk 0:02:59]} 3. g3 {[%clk 0:00:53]}  Bb4 {[%clk 0:02:58]} 4. Bg2 {[%clk 0:00:52]}  O-O {[%clk 0:02:58]} 5. d3 {[%clk 0:00:49]}  c6 {[%clk 0:02:57]} 6. Bd2 {[%clk 0:00:49]}  d5 {[%clk 0:02:57]} 7. a3 {[%clk 0:00:45]}  Be7 {[%clk 0:02:53]} 8. Nf3 {[%clk 0:00:45]}  d4 {[%clk 0:02:47]} 9. Na2 {[%clk 0:00:43]}  e4 {[%clk 0:02:46]} 10. dxe4 {[%clk 0:00:42]}  Nxe4 {[%clk 0:02:47]} 11. O-O {[%clk 0:00:40]}  Bf6 {[%clk 0:02:46]} 12. Nc1 {[%clk 0:00:33]}  Re8 {[%clk 0:02:44]} 13. Nd3 {[%clk 0:00:33]}  Bf5 {[%clk 0:02:44]} 14. c5 {[%clk 0:00:31]}  Nd7 {[%clk 0:02:43]} 15. b4 {[%clk 0:00:31]}  a5 {[%clk 0:02:42]} 16. Qb3 {[%clk 0:00:22]}  Nxd2 {[%clk 0:02:39]} 17. Nxd2 {[%clk 0:00:23]}  Rxe2 {[%clk 0:02:39]} 18. Nc4 {[%clk 0:00:22]}  a4 {[%clk 0:02:38]} 19. Qd1 {[%clk 0:00:21]}  Re7 {[%clk 0:02:33]} 20. Nd6 {[%clk 0:00:21]}  Bxd3 {[%clk 0:02:31]} 21. Qxd3 {[%clk 0:00:22]}  Ne5 {[%clk 0:02:31]} 22. Qd2 {[%clk 0:00:20]}  Qc7 {[%clk 0:02:25]} 23. Rae1 {[%clk 0:00:19]}  Rd8 {[%clk 0:02:24]} 24. Kh1 {[%clk 0:00:19]}  b6 {[%clk 0:02:18]} 25. Qxd4 {[%clk 0:00:16]}  bxc5 {[%clk 0:02:06]} 26. bxc5 {[%clk 0:00:17]}  Qa5 {[%clk 0:02:04]} 27. Qb4 {[%clk 0:00:13]}  Qxb4 {[%clk 0:01:57]} 28. axb4 {[%clk 0:00:14]}  a3 {[%clk 0:01:58]} 29. Ra1 {[%clk 0:00:12]}  Ra7 {[%clk 0:01:58]} 30. Ra2 {[%clk 0:00:11]}  Nd3 {[%clk 0:01:57]} 31. Nc4 {[%clk 0:00:11]}  Nxb4 {[%clk 0:01:45]} 32. Rxa3 {[%clk 0:00:11]}  Rxa3 {[%clk 0:01:45]} 33. Nxa3 {[%clk 0:00:12]}  Bd4 {[%clk 0:01:46]} 34. Rc1 {[%clk 0:00:08]}  Nd3 {[%clk 0:01:45]} 35. Rc2 {[%clk 0:00:06]}  Bxc5 {[%clk 0:01:41]} 36. Bf1 {[%clk 0:00:04]}  Bxa3 {[%clk 0:01:39]} 37. Rc3 {[%clk 0:00:04]}  Nxf2+ {[%clk 0:01:39]} 38. Kg2 {[%clk 0:00:04]}  Bb2 {[%clk 0:01:35]} 39. Rc2 {[%clk 0:00:04]}  Bd4 {[%clk 0:01:35]} 40. Rxc6 {[%clk 0:00:04]}  g6 {[%clk 0:01:35]} 41. Kf3 {[%clk 0:00:04]}  Nd1 {[%clk 0:01:32]} 42. g4 {[%clk 0:00:03]}  Ne3 {[%clk 0:01:32]} 43. Bd3 {[%clk 0:00:03]}  Kg7 {[%clk 0:01:31]} 44. g5 {[%clk 0:00:03]}  Nd5 {[%clk 0:01:30]} 45. Bc4 {[%clk 0:00:03]}  Nb6 {[%clk 0:01:26]} 46. Ba2 {[%clk 0:00:03]}  Ra8 {[%clk 0:01:25]} 47. Bb1 {[%clk 0:00:02]}  Ra3+ {[%clk 0:01:24]} 48. Ke4 {[%clk 0:00:02]}  Bg1 {[%clk 0:01:25]} 49. h4 {[%clk 0:00:02]}  Ra4+ {[%clk 0:01:25]} 50. Ke5 {[%clk 0:00:03]}  Rxh4 {[%clk 0:01:24]} 51. Ba2 {[%clk 0:00:03]}  Rg4 {[%clk 0:01:22]} 52. Kd6 {[%clk 0:00:01]}  Rxg5 {[%clk 0:01:22]} 53. Rc7 {[%clk 0:00:02]}  Bh2+ {[%clk 0:01:22]} 54. Ke7 {[%clk 0:00:02]}  Bxc7 {[%clk 0:01:23]} 55. Bxf7 {[%clk 0:00:02]}  Re5+ {[%clk 0:01:21]} 56. Be6 {[%clk 0:00:02]}  Rxe6+ {[%clk 0:01:21]} 57. Kxe6 {[%clk 0:00:00]}  h5 {[%clk 0:01:22]} 0-1


[Site "https://www.chess.com"]

[Event "Titled Tuesday Blitz July 4 Early 2023"]
[White "Dubov, Daniil"]
[Black "Demchenko, Anton"]
[WhiteFideId "24126055"]
[BlackFideId "4160258"]
[WhiteElo "3082"]
[BlackElo "2885"]
[Result "0-1"]
[Round "8"]
[TimeControl "180+2"]
[Date "2023.07.04"]
[WhiteClock "0:00:03"]
[BlackClock "0:00:04"]
[Board "9"]

1. e4 {[%clk 0:03:00]}  e5 {[%clk 0:02:59]} 2. d4 {[%clk 0:03:00]}  exd4 {[%clk 0:02:59]} 3. Nf3 {[%clk 0:03:01]}  Nc6 {[%clk 0:02:56]} 4. Nxd4 {[%clk 0:03:01]}  Bc5 {[%clk 0:02:55]} 5. Nb3 {[%clk 0:03:00]}  Bb6 {[%clk 0:02:55]} 6. Nc3 {[%clk 0:03:00]}  d6 {[%clk 0:02:53]} 7. a4 {[%clk 0:02:48]}  a6 {[%clk 0:02:51]} 8. Nd5 {[%clk 0:02:40]}  Ba7 {[%clk 0:02:51]} 9. Bd3 {[%clk 0:02:34]}  Nge7 {[%clk 0:02:50]} 10. Bg5 {[%clk 0:02:11]}  Be6 {[%clk 0:02:37]} 11. Qh5 {[%clk 0:01:24]}  Qd7 {[%clk 0:02:22]} 12. Bf6 {[%clk 0:01:01]}  Bxd5 {[%clk 0:02:00]} 13. exd5 {[%clk 0:01:01]}  gxf6 {[%clk 0:01:23]} 14. dxc6 {[%clk 0:01:00]}  Qxc6 {[%clk 0:01:24]} 15. O-O {[%clk 0:00:55]}  O-O-O {[%clk 0:01:03]} 16. Na5 {[%clk 0:00:38]}  Qc5 {[%clk 0:00:58]} 17. Qh3+ {[%clk 0:00:38]}  f5 {[%clk 0:00:25]} 18. b4 {[%clk 0:00:36]}  Qxb4 {[%clk 0:00:24]} 19. Bxf5+ {[%clk 0:00:36]}  Nxf5 {[%clk 0:00:20]} 20. Qxf5+ {[%clk 0:00:37]}  Rd7 {[%clk 0:00:20]} 21. Rab1 {[%clk 0:00:30]}  Qc5 {[%clk 0:00:21]} 22. Qf3 {[%clk 0:00:30]}  c6 {[%clk 0:00:18]} 23. Nb3 {[%clk 0:00:15]}  Qc4 {[%clk 0:00:15]} 24. Nd2 {[%clk 0:00:13]}  Qxc2 {[%clk 0:00:13]} 25. Ne4 {[%clk 0:00:13]}  Rhd8 {[%clk 0:00:07]} 26. Rfc1 {[%clk 0:00:06]}  Qxa4 {[%clk 0:00:07]} 27. Nc3 {[%clk 0:00:06]}  Qc4 {[%clk 0:00:06]} 28. Nd5 {[%clk 0:00:06]}  Qd4 {[%clk 0:00:07]} 29. Nb4 {[%clk 0:00:06]}  Rc7 {[%clk 0:00:06]} 30. Qf5+ {[%clk 0:00:04]}  Rdd7 {[%clk 0:00:06]} 31. Qxh7 {[%clk 0:00:05]}  a5 {[%clk 0:00:06]} 32. Nd3 {[%clk 0:00:02]}  Re7 {[%clk 0:00:06]} 33. Qf5+ {[%clk 0:00:03]}  Kb8 {[%clk 0:00:06]} 34. Kh1 {[%clk 0:00:03]}  a4 {[%clk 0:00:05]} 35. Ra1 {[%clk 0:00:03]}  b5 {[%clk 0:00:05]} 36. Rab1 {[%clk 0:00:03]}  Bb6 {[%clk 0:00:05]} 37. Nb4 {[%clk 0:00:03]}  Kb7 {[%clk 0:00:05]} 38. Qf3 {[%clk 0:00:03]}  d5 {[%clk 0:00:05]} 39. Nd3 {[%clk 0:00:02]}  Qe4 {[%clk 0:00:05]} 40. Qh3 {[%clk 0:00:03]}  f5 {[%clk 0:00:05]} 41. Re1 {[%clk 0:00:03]}  Qd4 {[%clk 0:00:04]} 42. Qf3 {[%clk 0:00:03]}  Rxe1+ {[%clk 0:00:03]} 43. Rxe1 {[%clk 0:00:04]}  a3 {[%clk 0:00:04]} 44. Ne5 {[%clk 0:00:02]}  Re7 {[%clk 0:00:04]} 45. Qxf5 {[%clk 0:00:01]}  a2 {[%clk 0:00:03]} 46. Qf6 {[%clk 0:00:01]}  Rc7 {[%clk 0:00:03]} 47. Ng4 {[%clk 0:00:01]}  Qxf6 {[%clk 0:00:02]} 48. Nxf6 {[%clk 0:00:02]}  Bd4 {[%clk 0:00:01]} 49. Ne8 {[%clk 0:00:02]}  a1=Q {[%clk 0:00:02]} 50. Nd6+ {[%clk 0:00:02]}  Kb6 {[%clk 0:00:02]} 51. Rxa1 {[%clk 0:00:03]}  Bxa1 {[%clk 0:00:02]} 52. g4 {[%clk 0:00:04]}  Re7 {[%clk 0:00:03]} 53. Kg2 {[%clk 0:00:04]}  Be5 {[%clk 0:00:03]} 54. Nf5 {[%clk 0:00:05]}  Rf7 {[%clk 0:00:03]} 55. h4 {[%clk 0:00:03]}  b4 {[%clk 0:00:04]} 0-1


[Site "https://www.chess.com"]

[Event "Titled Tuesday Blitz July 4 Early 2023"]
[White "Bluebaum, Matthias"]
[Black "Galchenko, Matvey"]
[WhiteFideId "24651516"]
[BlackFideId "24175480"]
[WhiteElo "3028"]
[BlackElo "2878"]
[Result "0-1"]
[Round "8"]
[TimeControl "180+2"]
[Date "2023.07.04"]
[WhiteClock "0:00:08"]
[BlackClock "0:00:33"]
[Board "10"]

1. d4 {[%clk 0:03:00]}  Nf6 {[%clk 0:02:53]} 2. c4 {[%clk 0:03:01]}  c5 {[%clk 0:02:54]} 3. d5 {[%clk 0:03:01]}  e6 {[%clk 0:02:55]} 4. Nc3 {[%clk 0:03:01]}  exd5 {[%clk 0:02:55]} 5. cxd5 {[%clk 0:03:02]}  d6 {[%clk 0:02:56]} 6. Nf3 {[%clk 0:03:03]}  g6 {[%clk 0:02:57]} 7. h3 {[%clk 0:03:03]}  Bg7 {[%clk 0:02:57]} 8. e4 {[%clk 0:03:04]}  O-O {[%clk 0:02:54]} 9. Be3 {[%clk 0:03:05]}  Re8 {[%clk 0:02:49]} 10. Nd2 {[%clk 0:03:05]}  a6 {[%clk 0:02:49]} 11. a4 {[%clk 0:03:05]}  Nxe4 {[%clk 0:02:50]} 12. Ncxe4 {[%clk 0:03:05]}  f5 {[%clk 0:02:51]} 13. Be2 {[%clk 0:03:06]}  fxe4 {[%clk 0:02:51]} 14. Nc4 {[%clk 0:03:06]}  a5 {[%clk 0:02:51]} 15. O-O {[%clk 0:03:02]}  Na6 {[%clk 0:02:50]} 16. Qd2 {[%clk 0:03:01]}  Nb4 {[%clk 0:02:49]} 17. Ra3 {[%clk 0:02:56]}  b6 {[%clk 0:02:46]} 18. Bg5 {[%clk 0:02:45]}  Bf6 {[%clk 0:02:40]} 19. Bf4 {[%clk 0:02:40]}  Be7 {[%clk 0:02:40]} 20. Re1 {[%clk 0:02:08]}  Bb7 {[%clk 0:02:13]} 21. Ne3 {[%clk 0:02:08]}  Rf8 {[%clk 0:02:14]} 22. Bg3 {[%clk 0:02:01]}  Bg5 {[%clk 0:02:12]} 23. Qd1 {[%clk 0:01:37]}  Bf4 {[%clk 0:01:59]} 24. Bg4 {[%clk 0:01:35]}  Nd3 {[%clk 0:01:46]} 25. Be6+ {[%clk 0:01:36]}  Kg7 {[%clk 0:01:45]} 26. Rxd3 {[%clk 0:01:11]}  exd3 {[%clk 0:01:44]} 27. Qxd3 {[%clk 0:01:12]}  Ba6 {[%clk 0:01:31]} 28. Qd2 {[%clk 0:01:00]}  Bxg3 {[%clk 0:01:25]} 29. fxg3 {[%clk 0:01:00]}  Qg5 {[%clk 0:01:24]} 30. Kh2 {[%clk 0:00:56]}  h5 {[%clk 0:01:16]} 31. h4 {[%clk 0:00:39]}  Qf6 {[%clk 0:01:16]} 32. Nd1 {[%clk 0:00:39]}  Rae8 {[%clk 0:01:09]} 33. Nc3 {[%clk 0:00:39]}  Qf2 {[%clk 0:01:04]} 34. Qxf2 {[%clk 0:00:24]}  Rxf2 {[%clk 0:01:04]} 35. Ne4 {[%clk 0:00:25]}  Rxb2 {[%clk 0:01:04]} 36. Nxd6 {[%clk 0:00:25]}  Rf8 {[%clk 0:01:05]} 37. Ne4 {[%clk 0:00:23]}  Re2 {[%clk 0:00:51]} 38. Rxe2 {[%clk 0:00:20]}  Bxe2 {[%clk 0:00:52]} 39. d6 {[%clk 0:00:19]}  Rd8 {[%clk 0:00:52]} 40. d7 {[%clk 0:00:07]}  Bg4 {[%clk 0:00:51]} 41. Ng5 {[%clk 0:00:07]}  Kf6 {[%clk 0:00:48]} 42. Bc4 {[%clk 0:00:08]}  Rxd7 {[%clk 0:00:47]} 43. Ne4+ {[%clk 0:00:08]}  Ke5 {[%clk 0:00:47]} 44. Nf2 {[%clk 0:00:08]}  Rd4 {[%clk 0:00:46]} 45. Bb5 {[%clk 0:00:09]}  Bd1 {[%clk 0:00:45]} 46. g4 {[%clk 0:00:09]}  Bxa4 {[%clk 0:00:41]} 47. Ba6 {[%clk 0:00:08]}  hxg4 {[%clk 0:00:41]} 48. Kg3 {[%clk 0:00:08]}  Bd7 {[%clk 0:00:41]} 49. Bd3 {[%clk 0:00:07]}  Bf5 {[%clk 0:00:40]} 50. Bb5 {[%clk 0:00:07]}  a4 {[%clk 0:00:40]} 51. h5 {[%clk 0:00:07]}  gxh5 {[%clk 0:00:40]} 52. Kh4 {[%clk 0:00:08]}  a3 {[%clk 0:00:41]} 53. g3 {[%clk 0:00:09]}  a2 {[%clk 0:00:40]} 54. Kxh5 {[%clk 0:00:09]}  a1=Q {[%clk 0:00:40]} 55. Bd3 {[%clk 0:00:10]}  Bxd3 {[%clk 0:00:38]} 56. Kg5 {[%clk 0:00:08]}  Qc1+ {[%clk 0:00:38]} 57. Kh5 {[%clk 0:00:09]}  Bg6+ {[%clk 0:00:37]} 58. Kxg6 {[%clk 0:00:09]}  Rd6+ {[%clk 0:00:37]} 59. Kh5 {[%clk 0:00:09]}  Qh6+ {[%clk 0:00:37]} 60. Kxg4 {[%clk 0:00:09]}  Rg6+ {[%clk 0:00:37]} 61. Kf3 {[%clk 0:00:10]}  Rf6+ {[%clk 0:00:37]} 62. Kg4 {[%clk 0:00:09]}  Qg6+ {[%clk 0:00:35]} 63. Kh3 {[%clk 0:00:08]}  Rxf2 {[%clk 0:00:34]} 64. g4 {[%clk 0:00:08]}  Rf3+ {[%clk 0:00:33]} 65. Kh4 {[%clk 0:00:08]}  Qh6# {[%clk 0:00:33]} 0-1


[Site "https://www.chess.com"]

[Event "Titled Tuesday Blitz July 4 Early 2023"]
[White "Gholami Orimi, Mahdi"]
[Black "Terry, Renato"]
[WhiteFideId "12558486"]
[BlackFideId "3803457"]
[WhiteElo "2877"]
[BlackElo "2986"]
[Result "0-1"]
[Round "8"]
[TimeControl "180+2"]
[Date "2023.07.04"]
[WhiteClock "0:00:12"]
[BlackClock "0:00:15"]
[Board "12"]

1. d4 {[%clk 0:02:51]}  e6 {[%clk 0:03:00]} 2. c4 {[%clk 0:02:52]}  Bb4+ {[%clk 0:03:00]} 3. Nd2 {[%clk 0:02:51]}  Nf6 {[%clk 0:02:59]} 4. g3 {[%clk 0:02:51]}  O-O {[%clk 0:02:57]} 5. Bg2 {[%clk 0:02:52]}  d6 {[%clk 0:02:58]} 6. Nf3 {[%clk 0:02:51]}  Qe7 {[%clk 0:02:57]} 7. O-O {[%clk 0:02:52]}  Bxd2 {[%clk 0:02:55]} 8. Bxd2 {[%clk 0:02:52]}  e5 {[%clk 0:02:55]} 9. Qc2 {[%clk 0:02:52]}  Bg4 {[%clk 0:02:51]} 10. Rfe1 {[%clk 0:02:44]}  Nc6 {[%clk 0:02:43]} 11. d5 {[%clk 0:02:44]}  Nb8 {[%clk 0:02:36]} 12. Nh4 {[%clk 0:02:43]}  Nbd7 {[%clk 0:02:27]} 13. f3 {[%clk 0:02:43]}  Bh5 {[%clk 0:02:27]} 14. Nf5 {[%clk 0:02:43]}  Qd8 {[%clk 0:02:27]} 15. e4 {[%clk 0:02:44]}  Bg6 {[%clk 0:02:27]} 16. b4 {[%clk 0:02:44]}  Bxf5 {[%clk 0:02:23]} 17. exf5 {[%clk 0:02:45]}  Re8 {[%clk 0:02:24]} 18. a3 {[%clk 0:02:26]}  h6 {[%clk 0:02:23]} 19. Re2 {[%clk 0:02:25]}  b6 {[%clk 0:02:23]} 20. Rae1 {[%clk 0:02:25]}  a5 {[%clk 0:02:16]} 21. bxa5 {[%clk 0:02:17]}  bxa5 {[%clk 0:02:17]} 22. g4 {[%clk 0:02:06]}  Nh7 {[%clk 0:01:54]} 23. f4 {[%clk 0:02:04]}  Qh4 {[%clk 0:01:53]} 24. h3 {[%clk 0:02:02]}  Kf8 {[%clk 0:01:40]} 25. c5 {[%clk 0:01:43]}  exf4 {[%clk 0:01:09]} 26. Rxe8+ {[%clk 0:01:42]}  Rxe8 {[%clk 0:01:09]} 27. Rxe8+ {[%clk 0:01:42]}  Kxe8 {[%clk 0:01:09]} 28. cxd6 {[%clk 0:01:42]}  cxd6 {[%clk 0:01:08]} 29. Qe4+ {[%clk 0:01:34]}  Ne5 {[%clk 0:00:58]} 30. Bxf4 {[%clk 0:01:30]}  f6 {[%clk 0:00:27]} 31. Qa4+ {[%clk 0:01:20]}  Kf8 {[%clk 0:00:27]} 32. Qxa5 {[%clk 0:01:14]}  Ng5 {[%clk 0:00:27]} 33. Qc3 {[%clk 0:00:46]}  h5 {[%clk 0:00:24]} 34. Qg3 {[%clk 0:00:18]}  Qxg3 {[%clk 0:00:23]} 35. Bxg3 {[%clk 0:00:19]}  Ngf7 {[%clk 0:00:16]} 36. gxh5 {[%clk 0:00:15]}  Ke7 {[%clk 0:00:16]} 37. a4 {[%clk 0:00:15]}  Kd7 {[%clk 0:00:16]} 38. Bf1 {[%clk 0:00:13]}  Kc7 {[%clk 0:00:16]} 39. Bf4 {[%clk 0:00:12]}  Kb6 {[%clk 0:00:15]} 40. Bd2 {[%clk 0:00:11]}  Nf3+ {[%clk 0:00:14]} 41. Kf2 {[%clk 0:00:11]}  Nxd2 {[%clk 0:00:15]} 42. Bd3 {[%clk 0:00:12]}  Nb3 {[%clk 0:00:14]} 43. Ke3 {[%clk 0:00:12]}  Nc5 {[%clk 0:00:15]} 44. Bb5 {[%clk 0:00:13]}  Nh6 {[%clk 0:00:15]} 45. Kf4 {[%clk 0:00:12]}  Ka5 {[%clk 0:00:15]} 0-1


[Site "https://www.chess.com"]

[Event "Titled Tuesday Blitz July 4 Early 2023"]
[White "Samunenkov, Ihor"]
[Black "Svane, Rasmus"]
[WhiteFideId "14187086"]
[BlackFideId "4657101"]
[WhiteElo "2755"]
[BlackElo "2919"]
[Result "0-1"]
[Round "8"]
[TimeControl "180+2"]
[Date "2023.07.04"]
[WhiteClock "0:00:02"]
[BlackClock "0:00:28"]
[Board "16"]

1. d4 {[%clk 0:03:00]}  d5 {[%clk 0:02:57]} 2. c4 {[%clk 0:02:59]}  e6 {[%clk 0:02:58]} 3. Nc3 {[%clk 0:02:56]}  h6 {[%clk 0:02:58]} 4. cxd5 {[%clk 0:02:51]}  exd5 {[%clk 0:02:59]} 5. Bf4 {[%clk 0:02:47]}  Nf6 {[%clk 0:02:59]} 6. e3 {[%clk 0:02:47]}  Bd6 {[%clk 0:02:59]} 7. Be5 {[%clk 0:02:42]}  c6 {[%clk 0:02:57]} 8. Nf3 {[%clk 0:02:42]}  Qe7 {[%clk 0:02:55]} 9. h3 {[%clk 0:02:26]}  Bf5 {[%clk 0:02:52]} 10. Bd3 {[%clk 0:02:21]}  Bxd3 {[%clk 0:02:51]} 11. Qxd3 {[%clk 0:02:22]}  Nbd7 {[%clk 0:02:52]} 12. Bxd6 {[%clk 0:02:22]}  Qxd6 {[%clk 0:02:53]} 13. O-O {[%clk 0:02:23]}  O-O {[%clk 0:02:53]} 14. Rab1 {[%clk 0:02:22]}  a5 {[%clk 0:02:54]} 15. Qc2 {[%clk 0:02:21]}  Rfe8 {[%clk 0:02:54]} 16. Nd2 {[%clk 0:02:20]}  g6 {[%clk 0:02:52]} 17. a3 {[%clk 0:02:12]}  Kg7 {[%clk 0:02:51]} 18. Rfc1 {[%clk 0:02:08]}  Rec8 {[%clk 0:02:45]} 19. Na4 {[%clk 0:01:57]}  Ne8 {[%clk 0:02:36]} 20. b4 {[%clk 0:01:51]}  axb4 {[%clk 0:02:17]} 21. axb4 {[%clk 0:01:50]}  Qe7 {[%clk 0:02:18]} 22. Nc5 {[%clk 0:01:23]}  Nd6 {[%clk 0:02:17]} 23. Nxd7 {[%clk 0:01:19]}  Qxd7 {[%clk 0:02:18]} 24. e4 {[%clk 0:01:19]}  Nb5 {[%clk 0:02:09]} 25. Qb2 {[%clk 0:01:09]}  Ra3 {[%clk 0:01:44]} 26. exd5 {[%clk 0:01:01]}  Qxd5 {[%clk 0:01:45]} 27. Nc4 {[%clk 0:00:59]}  Ra6 {[%clk 0:01:41]} 28. Na5 {[%clk 0:00:55]}  Rc7 {[%clk 0:01:36]} 29. Nb3 {[%clk 0:00:46]}  Ra4 {[%clk 0:01:36]} 30. Rc5 {[%clk 0:00:43]}  Qd6 {[%clk 0:01:29]} 31. d5+ {[%clk 0:00:42]}  Kh7 {[%clk 0:01:23]} 32. dxc6 {[%clk 0:00:40]}  bxc6 {[%clk 0:01:23]} 33. Qd2 {[%clk 0:00:35]}  Qe6 {[%clk 0:01:12]} 34. Nd4 {[%clk 0:00:23]}  Rd7 {[%clk 0:01:12]} 35. Qc2 {[%clk 0:00:13]}  Nxd4 {[%clk 0:00:47]} 36. Qxa4 {[%clk 0:00:13]}  Qe4 {[%clk 0:00:47]} 37. Rd1 {[%clk 0:00:10]}  Ne2+ {[%clk 0:00:44]} 38. Kh1 {[%clk 0:00:08]}  Nf4 {[%clk 0:00:44]} 39. Rg1 {[%clk 0:00:03]}  Nxh3 {[%clk 0:00:44]} 40. Rf1 {[%clk 0:00:04]}  Rd2 {[%clk 0:00:26]} 41. Qxc6 {[%clk 0:00:02]}  Nxf2+ {[%clk 0:00:27]} 42. Rxf2 {[%clk 0:00:01]}  Qh4+ {[%clk 0:00:27]} 43. Kg1 {[%clk 0:00:01]}  Qxf2+ {[%clk 0:00:27]} 44. Kh2 {[%clk 0:00:02]}  Qh4+ {[%clk 0:00:28]} 45. Kg1 {[%clk 0:00:02]}  Rd1# {[%clk 0:00:28]} 0-1


[Site "https://www.chess.com"]

[Event "Titled Tuesday Blitz July 4 Early 2023"]
[White "Madaminov, Mukhiddin"]
[Black "Rustemov, Alexander"]
[WhiteFideId "14210703"]
[BlackFideId "4119002"]
[WhiteElo "3011"]
[BlackElo "2780"]
[Result "0-1"]
[Round "8"]
[TimeControl "180+2"]
[Date "2023.07.04"]
[WhiteClock "0:00:04"]
[BlackClock "0:00:11"]
[Board "21"]

1. e4 {[%clk 0:03:00]}  e6 {[%clk 0:02:59]} 2. d4 {[%clk 0:03:00]}  d5 {[%clk 0:03:00]} 3. Nc3 {[%clk 0:03:00]}  dxe4 {[%clk 0:03:00]} 4. Nxe4 {[%clk 0:03:01]}  Bd7 {[%clk 0:03:01]} 5. Nf3 {[%clk 0:03:00]}  Bc6 {[%clk 0:03:01]} 6. Bd3 {[%clk 0:03:01]}  Nd7 {[%clk 0:03:02]} 7. O-O {[%clk 0:03:02]}  Ngf6 {[%clk 0:03:02]} 8. Nc3 {[%clk 0:03:02]}  Be7 {[%clk 0:03:00]} 9. Ne5 {[%clk 0:02:59]}  Nxe5 {[%clk 0:02:58]} 10. dxe5 {[%clk 0:03:00]}  Nd5 {[%clk 0:02:56]} 11. Qg4 {[%clk 0:02:58]}  g6 {[%clk 0:02:47]} 12. Be4 {[%clk 0:02:52]}  Qd7 {[%clk 0:02:36]} 13. Rd1 {[%clk 0:02:46]}  O-O-O {[%clk 0:02:35]} 14. Bg5 {[%clk 0:02:47]}  h5 {[%clk 0:02:22]} 15. Qh4 {[%clk 0:02:40]}  Bxg5 {[%clk 0:02:19]} 16. Qxg5 {[%clk 0:02:40]}  Qe7 {[%clk 0:02:18]} 17. Qxe7 {[%clk 0:02:36]}  Nxe7 {[%clk 0:02:17]} 18. f4 {[%clk 0:02:37]}  Bxe4 {[%clk 0:02:01]} 19. Nxe4 {[%clk 0:02:35]}  Nd5 {[%clk 0:02:02]} 20. Ng5 {[%clk 0:02:09]}  Rd7 {[%clk 0:01:54]} 21. Rd4 {[%clk 0:02:04]}  c5 {[%clk 0:01:48]} 22. Rc4 {[%clk 0:02:00]}  b6 {[%clk 0:01:45]} 23. Kf2 {[%clk 0:01:59]}  Rhd8 {[%clk 0:01:41]} 24. Kf3 {[%clk 0:01:52]}  Kb7 {[%clk 0:01:39]} 25. a3 {[%clk 0:01:48]}  Kc6 {[%clk 0:01:39]} 26. b4 {[%clk 0:01:36]}  Kb5 {[%clk 0:01:34]} 27. Re4 {[%clk 0:01:36]}  cxb4 {[%clk 0:01:28]} 28. axb4 {[%clk 0:01:34]}  Nxb4 {[%clk 0:01:27]} 29. Rb1 {[%clk 0:01:32]}  a5 {[%clk 0:01:26]} 30. c3 {[%clk 0:01:12]}  Rd3+ {[%clk 0:01:25]} 31. Re3 {[%clk 0:00:59]}  Rxe3+ {[%clk 0:01:25]} 32. Kxe3 {[%clk 0:00:59]}  Rd3+ {[%clk 0:01:25]} 33. Ke4 {[%clk 0:01:00]}  Rxc3 {[%clk 0:01:26]} 34. Nxf7 {[%clk 0:01:01]}  Rc2 {[%clk 0:01:02]} 35. Kf3 {[%clk 0:00:56]}  Kc6 {[%clk 0:00:43]} 36. Ng5 {[%clk 0:00:49]}  Kd7 {[%clk 0:00:43]} 37. h3 {[%clk 0:00:42]}  Nd5 {[%clk 0:00:43]} 38. g4 {[%clk 0:00:14]}  Rc3+ {[%clk 0:00:39]} 39. Kf2 {[%clk 0:00:14]}  Nxf4 {[%clk 0:00:37]} 40. gxh5 {[%clk 0:00:08]}  gxh5 {[%clk 0:00:37]} 41. h4 {[%clk 0:00:02]}  a4 {[%clk 0:00:36]} 42. Rxb6 {[%clk 0:00:02]}  Nh3+ {[%clk 0:00:24]} 43. Kg2 {[%clk 0:00:03]}  Nxg5 {[%clk 0:00:17]} 44. hxg5 {[%clk 0:00:04]}  Rc5 {[%clk 0:00:16]} 45. g6 {[%clk 0:00:02]}  Rxe5 {[%clk 0:00:16]} 46. g7 {[%clk 0:00:03]}  Rg5+ {[%clk 0:00:16]} 47. Kh3 {[%clk 0:00:04]}  Ke7 {[%clk 0:00:16]} 48. Ra6 {[%clk 0:00:03]}  Kf6 {[%clk 0:00:15]} 49. Rxa4 {[%clk 0:00:03]}  Rxg7 {[%clk 0:00:15]} 50. Ra6 {[%clk 0:00:03]}  Kf5 {[%clk 0:00:15]} 51. Kh4 {[%clk 0:00:03]}  e5 {[%clk 0:00:15]} 52. Ra5 {[%clk 0:00:03]}  Kf4 {[%clk 0:00:14]} 53. Kxh5 {[%clk 0:00:03]}  e4 {[%clk 0:00:14]} 54. Ra1 {[%clk 0:00:04]}  e3 {[%clk 0:00:14]} 55. Rf1+ {[%clk 0:00:04]}  Ke4 {[%clk 0:00:14]} 56. Kh6 {[%clk 0:00:05]}  Rg8 {[%clk 0:00:13]} 57. Kh7 {[%clk 0:00:05]}  Rg2 {[%clk 0:00:13]} 58. Rf8 {[%clk 0:00:05]}  e2 {[%clk 0:00:14]} 59. Rf2 {[%clk 0:00:04]}  Rxf2 {[%clk 0:00:11]} 0-1


[Site "https://www.chess.com"]

[Event "Titled Tuesday Blitz July 4 Early 2023"]
[White "Andreikin, Dmitry"]
[Black "Bauman_Guy"]
[WhiteFideId "4158814"]
[WhiteElo "2980"]
[BlackElo "2728"]
[Result "0-1"]
[Round "8"]
[TimeControl "180+2"]
[Date "2023.07.04"]
[WhiteClock "0:00:46"]
[BlackClock "0:00:37"]
[Board "23"]

1. Nf3 {[%clk 0:03:00]}  d5 {[%clk 0:03:00]} 2. c4 {[%clk 0:02:59]}  c6 {[%clk 0:03:00]} 3. e3 {[%clk 0:02:56]}  Nf6 {[%clk 0:03:00]} 4. Nc3 {[%clk 0:02:56]}  g6 {[%clk 0:03:00]} 5. d4 {[%clk 0:02:55]}  Bg7 {[%clk 0:03:01]} 6. Be2 {[%clk 0:02:55]}  O-O {[%clk 0:03:00]} 7. O-O {[%clk 0:02:56]}  a6 {[%clk 0:03:01]} 8. a4 {[%clk 0:02:54]}  Ne4 {[%clk 0:02:43]} 9. a5 {[%clk 0:02:52]}  Nxc3 {[%clk 0:02:41]} 10. bxc3 {[%clk 0:02:52]}  Nd7 {[%clk 0:02:33]} 11. Ba3 {[%clk 0:02:48]}  Re8 {[%clk 0:02:31]} 12. Qb3 {[%clk 0:02:48]}  Nf6 {[%clk 0:02:28]} 13. Rfd1 {[%clk 0:02:46]}  Ne4 {[%clk 0:02:25]} 14. cxd5 {[%clk 0:02:39]}  cxd5 {[%clk 0:02:25]} 15. c4 {[%clk 0:02:40]}  Be6 {[%clk 0:02:16]} 16. Bb4 {[%clk 0:02:29]}  dxc4 {[%clk 0:02:14]} 17. Bxc4 {[%clk 0:02:29]}  Bxc4 {[%clk 0:02:14]} 18. Qxc4 {[%clk 0:02:29]}  Rc8 {[%clk 0:02:12]} 19. Qb3 {[%clk 0:02:28]}  Qd7 {[%clk 0:02:12]} 20. Rab1 {[%clk 0:02:23]}  Rc7 {[%clk 0:02:11]} 21. h3 {[%clk 0:02:22]}  Rec8 {[%clk 0:02:06]} 22. Be1 {[%clk 0:02:21]}  h6 {[%clk 0:02:03]} 23. Ne5 {[%clk 0:02:15]}  Bxe5 {[%clk 0:01:57]} 24. dxe5 {[%clk 0:02:15]}  Qf5 {[%clk 0:01:57]} 25. Qd5 {[%clk 0:02:07]}  Rc2 {[%clk 0:01:45]} 26. e6 {[%clk 0:01:57]}  fxe6 {[%clk 0:01:36]} 27. Qxf5 {[%clk 0:01:55]}  exf5 {[%clk 0:01:36]} 28. Rxb7 {[%clk 0:01:54]}  Rc1 {[%clk 0:01:36]} 29. Rxc1 {[%clk 0:01:51]}  Rxc1 {[%clk 0:01:36]} 30. Kf1 {[%clk 0:01:51]}  Kf7 {[%clk 0:01:28]} 31. Rb6 {[%clk 0:01:50]}  Nc5 {[%clk 0:01:27]} 32. Ke2 {[%clk 0:01:36]}  Rc2+ {[%clk 0:01:26]} 33. Kd1 {[%clk 0:01:37]}  Ra2 {[%clk 0:01:25]} 34. f3 {[%clk 0:01:12]}  Rxg2 {[%clk 0:01:20]} 35. Bb4 {[%clk 0:01:06]}  Nd3 {[%clk 0:01:19]} 36. Bc3 {[%clk 0:01:05]}  Nc5 {[%clk 0:00:58]} 37. Rc6 {[%clk 0:01:03]}  Na4 {[%clk 0:00:43]} 38. Bd4 {[%clk 0:00:56]}  Nb2+ {[%clk 0:00:43]} 39. Kc1 {[%clk 0:00:48]}  Nd3+ {[%clk 0:00:41]} 40. Kb1 {[%clk 0:00:49]}  Rg1+ {[%clk 0:00:37]} 41. Kc2 {[%clk 0:00:47]}  Nb4+ {[%clk 0:00:37]} 42. Kc3 {[%clk 0:00:46]}  Nxc6 {[%clk 0:00:37]} 0-1


[Site "https://www.chess.com"]